fUSD/lending_fUSD_20240629
["ID","MTS","AMOUNT","RATE_DAILY","PERIOD"]
[330612424,1719624664546,-2751.54,0.00021917,3]
[330612425,1719624664556,-754.96,0.00021917,3]
[330612426,1719624664566,-336.53721348,0.00021917,3]
[330612427,1719624664576,-921.36,0.00021917,3]
[330612428,1719624664586,-1174.65,0.00021917,3]
[330612429,1719624664598,-749.66,0.00021917,3]
[330612430,1719624664607,-620.45,0.00021917,3]
[330612431,1719624664617,-507.8,0.00021917,3]
[330612432,1719624664626,-500.0,0.00021917,3]
[330612433,1719624664635,-974.62,0.00021917,3]
[330612434,1719624664644,-353.63709543,0.00021917,3]
[330612435,1719624664654,-500.0,0.00021917,3]
[330612436,1719624664663,-1527.47,0.00021917,3]
[330612437,1719624664674,-500.0,0.00021917,3]
[330612438,1719624664683,-1163.73,0.00021917,3]
[330612439,1719624664692,-500.0,0.00021917,3]
[330612440,1719624664703,-151.0,0.00021917,2]
[330612441,1719624664714,-772.94,0.00021917,3]
[330612442,1719624664725,-1804.78,0.00021917,3]
[330612443,1719624664736,-500.0,0.00021917,3]
[330612444,1719624664746,-500.0,0.00021917,3]
[330612445,1719624664755,-839.14,0.00021917,3]
[330612446,1719624664765,-902.36,0.00021917,3]
[330612447,1719624664776,-1380.97,0.00021917,3]
[330612448,1719624664786,-500.0,0.00021917,3]
[330612449,1719624664795,-500.0,0.00021917,3]
[330612450,1719624664804,-152.292693,0.00021917,2]
[330612451,1719624664814,-500.0,0.00021917,3]
[330612452,1719624664823,-1160.23,0.00021917,3]
[330612453,1719624664832,-1029.12,0.00021917,3]
[330612454,1719624664842,-1141.72,0.00021917,3]
[330612455,1719624664851,-10528.0,0.00021917,3]
[330612456,1719624664860,-561.18,0.00021917,3]
[330612457,1719624664869,-500.0,0.00021917,3]
[330612458,1719624664878,-3611.32,0.00021917,3]
[330612459,1719624664887,-152.292686,0.00021917,2]
[330612460,1719624664897,-884.16,0.00021917,3]
[330612461,1719624664905,-657.66,0.00021917,3]
[330612462,1719624664914,-1253.72,0.00021917,3]
[330612463,1719624664924,-1596.0,0.00021917,3]
[330612464,1719624664933,-443.1869989,0.00021917,3]
[330612465,1719624664943,-500.0,0.00021917,3]
[330612466,1719624664952,-913.6,0.00021917,3]
[330612467,1719624664961,-500.0,0.00021917,3]
[330612468,1719624664970,-500.0,0.00021917,3]
[330612469,1719624664979,-539.8,0.00021917,3]
[330612471,1719624664988,-2734.83,0.00021917,3]
[330612472,1719624664997,-1243.17,0.00021917,3]
[330612474,1719624665007,-500.0,0.00021917,3]
[330612475,1719624665017,-666.63,0.00021917,3]
[330612476,1719624665026,-500.0,0.00021917,3]
[330612477,1719624665035,-858.32,0.00021917,3]
[330612478,1719624665044,-2950.95,0.00021917,3]
[330612479,1719624665053,-500.0,0.00021917,3]
[330612480,1719624665063,-2881.65,0.00021917,3]
[330612481,1719624665072,-500.0,0.00021917,3]
[330612482,1719624665081,-1102.31,0.00021917,3]
[330612483,1719624665090,-599.97,0.00021917,3]
[330612484,1719624665100,-500.0,0.00021917,3]
[330612485,1719624665109,-573.04,0.00021917,3]
[330612486,1719624665119,-3100.35,0.00021917,3]
[330612487,1719624665128,-997.01,0.00021917,3]
[330612488,1719624665137,-500.0,0.00021917,3]
[330612489,1719624665146,-1238.0,0.00021917,3]
[330612490,1719624665156,-1154.76,0.00021917,3]
[330612491,1719624665165,-1151.54,0.00021917,3]
[330612492,1719624665178,-500.0,0.00021917,3]
[330612493,1719624665187,-500.0,0.00021917,3]
[330612494,1719624665196,-206.667916,0.00021917,2]
[330612495,1719624665205,-500.0,0.00021917,3]
[330612496,1719624665214,-500.0,0.00021917,3]
[330612497,1719624665223,-957.42,0.00021917,3]
[330612498,1719624665232,-151.0,0.00021917,2]
[330612499,1719624665243,-206.667907,0.00021917,2]
[330612500,1719624665253,-500.0,0.00021917,3]
[330612501,1719624665263,-500.0,0.00021917,3]
[330612502,1719624665272,-500.0,0.00021917,3]
[330612503,1719624665282,-2252.38,0.00021917,3]
[330612504,1719624665291,-3833.58,0.00021917,3]
[330612505,1719624665300,-382.40692917,0.00021917,3]
[330612506,1719624665309,-500.0,0.00021917,3]
[330612507,1719624665319,-1048.64,0.00021917,3]
[330612508,1719624665328,-847.39,0.00021917,3]
[330612509,1719624665337,-587.07834311,0.00021917,3]
[330612510,1719624665351,-976.22,0.00021917,3]
[330612511,1719624665360,-500.0,0.00021917,3]
[330612512,1719624665470,-4549.24,0.00021917,3]
[330612513,1719624665480,-958.03,0.00021917,3]
[330612514,1719624665489,-500.0,0.00021917,3]
[330612515,1719624665499,-500.0,0.00021917,3]
[330612516,1719624665508,-859.51,0.00021917,3]
[330612517,1719624665517,-955.16,0.00021917,3]
[330612518,1719624665527,-715.53,0.00021917,3]
[330612519,1719624665536,-500.0,0.00021917,3]
[330612520,1719624665546,-500.0,0.00021917,3]
[330612521,1719624665555,-500.0,0.00021917,3]
[330612522,1719624665565,-1438.6,0.00021917,3]
[330612523,1719624665575,-500.0,0.00021917,3]
[330612524,1719624665584,-500.0,0.00021917,3]
[330612525,1719624665594,-500.0,0.00021917,3]
[330612526,1719624665604,-500.0,0.00021917,3]
[330612527,1719624665613,-500.0,0.00021917,3]
[330612528,1719624665622,-500.0,0.00021917,3]
[330612529,1719624665631,-500.0,0.00021917,3]
[330612530,1719624665640,-500.0,0.00021917,3]
[330612531,1719624665649,-955.13,0.00021917,3]
[330612532,1719624665659,-500.0,0.00021917,3]
[330612533,1719624665668,-832.58,0.00021917,3]
[330612534,1719624665677,-500.0,0.00021917,3]
[330612535,1719624665687,-500.0,0.00021917,3]
[330612536,1719624665696,-500.0,0.00021917,3]
[330612538,1719624665705,-1152.66,0.00021917,3]
[330612539,1719624665714,-734.17,0.00021917,3]
[330612540,1719624665723,-500.0,0.00021917,3]
[330612542,1719624665733,-500.0,0.00021917,3]
[330612543,1719624665742,-7463.31,0.00021917,3]
[330612545,1719624665751,-3259.77,0.00021917,3]
[330612546,1719624665760,-500.0,0.00021917,3]
[330612547,1719624665770,-500.0,0.00021917,3]
[330612548,1719624665779,-600.24,0.00021917,3]
[330612549,1719624665788,-500.0,0.00021917,3]
[330612550,1719624665798,-312.15757,0.00021917,2]
[330612551,1719624665807,-524.3,0.00021917,3]
[330612552,1719624665816,-518.16,0.00021917,3]
[330612553,1719624665825,-733.59,0.00021917,3]
[330612554,1719624665834,-1989.77,0.00021917,3]
[330612555,1719624665843,-500.0,0.00021917,3]
[330612556,1719624665852,-1076.15,0.00021917,3]
[330612557,1719624665861,-500.0,0.00021917,3]
[330612558,1719624665871,-312.157565,0.00021917,2]
[330612559,1719624665880,-526.94,0.00021917,3]
[330612560,1719624665888,-500.0,0.00021917,3]
[330612561,1719624665898,-500.0,0.00021917,3]
[330612562,1719624665907,-2136.24,0.00021917,3]
[330612563,1719624665916,-1078.91,0.00021917,3]
[330612564,1719624665927,-500.0,0.00021917,3]
[330612565,1719624665936,-1209.59,0.00021917,3]
[330612566,1719624665944,-1384.39,0.00021917,3]
[330612567,1719624665953,-1004.41,0.00021917,3]
[330612568,1719624665962,-3169.0,0.00021917,3]
[330612569,1719624665971,-4295.14,0.00021917,3]
[330612570,1719624665980,-668.92,0.00021917,3]
[330612571,1719624665990,-500.0,0.00021917,3]
[330612572,1719624665999,-500.0,0.00021917,3]
[330612573,1719624666008,-1583.74,0.00021917,3]
[330612574,1719624666017,-500.0,0.00021917,3]
[330612575,1719624666026,-500.0,0.00021917,3]
[330612576,1719624666035,-39648.0,0.00021917,3]
[330612577,1719624666044,-887.495359,0.00021917,2]
[330612578,1719624666053,-500.0,0.00021917,3]
[330612579,1719624666062,-1043.71,0.00021917,3]
[330612580,1719624666071,-500.0,0.00021917,3]
[330612581,1719624666080,-887.495355,0.00021917,2]
[330612582,1719624666089,-151.0,0.00021917,2]
[330612583,1719624666098,-500.0,0.00021917,3]
[330612584,1719624666109,-500.0,0.00021917,3]
[330612585,1719624666118,-500.0,0.00021917,3]
[330612586,1719624666130,-500.39727677,0.00021917,3]
[330612587,1719624666140,-879.55,0.00021917,3]
[330612588,1719624666151,-875.07,0.00021917,3]
[330612589,1719624666162,-717.04,0.00021917,3]
[330612590,1719624666173,-3979.85,0.00021917,3]
[330612591,1719624666183,-724.25,0.00021917,3]
[330612592,1719624666192,-500.0,0.00021917,3]
[330612593,1719624666201,-1495.61,0.00021917,3]
[330612594,1719624666210,-500.0,0.00021917,3]
[330612595,1719624666219,-1446.97,0.00021917,3]
[330612596,1719624666229,-1966.0,0.00021917,3]
[330612597,1719624666240,-2929.84,0.00021917,3]
[330612598,1719624666250,-500.0,0.00021917,3]
[330612599,1719624666260,-500.0,0.00021917,3]
[330612600,1719624666269,-7736.62,0.00021917,3]
[330612601,1719624666278,-151.0,0.00021917,2]
[330612602,1719624666288,-500.0,0.00021917,3]
[330612603,1719624666298,-500.0,0.00021917,3]
[330612604,1719624666307,-442.342199,0.00021917,2]
[330612605,1719624666316,-486.228473,0.00021917,2]
[330612606,1719624666326,-500.0,0.00021917,3]
[330612607,1719624666335,-486.228476,0.00021917,2]
[330612608,1719624666349,-1527.33,0.00021917,3]
[330612609,1719624666358,-442.34219,0.00021917,2]
[330612610,1719624666367,-500.0,0.00021917,3]
[330612611,1719624666376,-725.11,0.00021917,3]
[330612612,1719624666387,-1633.64,0.00021917,3]
[330612613,1719624666396,-2369.73,0.00021917,3]
[330612614,1719624666405,-585.53,0.00021917,3]
[330612615,1719624666415,-713.03,0.00021917,3]
[330612616,1719624666427,-1130.0,0.00021917,3]
[330612617,1719624666437,-665.18,0.00021917,3]
[330612618,1719624666446,-2883.25,0.00021917,3]
[330612619,1719624666456,-500.0,0.00021917,3]
[330612620,1719624666465,-500.0,0.00021917,3]
[330612621,1719624666475,-2056.71,0.00021917,3]
[330612622,1719624666485,-500.0,0.00021917,3]
[330612623,1719624666494,-1665.41,0.00021917,3]
[330612624,1719624666504,-3455.43,0.00021917,3]
[330612625,1719624666514,-2667.61,0.00021917,3]
[330612626,1719624666523,-5971.31,0.00021917,3]
[330612627,1719624666532,-500.0,0.00021917,3]
[330612628,1719624666542,-5568.09,0.00021917,3]
[330612629,1719624666552,-656.27,0.00021917,3]
[330612630,1719624666562,-500.0,0.00021917,3]
[330612631,1719624666572,-942.6,0.00021917,3]
[330612632,1719624666582,-500.0,0.00021917,3]
[330612633,1719624666592,-500.0,0.00021917,3]
[330612634,1719624666602,-5813.02,0.00021917,3]
[330612635,1719624666612,-500.0,0.00021917,3]
[330612636,1719624666622,-386.31,0.00021917,7]
[330612637,1719624666631,-500.0,0.00021917,3]
[330612638,1719624666640,-1015.65,0.00021917,3]
[330612639,1719624666650,-500.0,0.00021917,3]
[330612640,1719624666659,-2677.05,0.00021917,3]
[330612641,1719624666667,-1920.59,0.00021917,3]
[330612642,1719624666678,-1497.98,0.00021917,3]
[330612643,1719624666688,-500.0,0.00021917,3]
[330612644,1719624666697,-1658.78,0.00021917,3]
[330612645,1719624666706,-934.33,0.00021917,3]
[330612646,1719624666716,-2535.07,0.00021917,3]
[330612647,1719624666727,-500.0,0.00021917,3]
[330612648,1719624666737,-500.0,0.00021917,3]
[330612649,1719624666747,-500.0,0.00021917,3]
[330612650,1719624666757,-924.97,0.00021917,3]
[330612651,1719624666767,-4996.16,0.00021917,3]
[330612652,1719624666777,-1216.48,0.00021917,3]
[330612653,1719624666786,-500.0,0.00021917,3]
[330612654,1719624666796,-866.1,0.00021917,3]
[330612655,1719624666806,-1306.34,0.00021917,3]
[330612656,1719624666816,-500.0,0.00021917,3]
[330612657,1719624666825,-500.0,0.00021917,3]
[330612658,1719624666835,-1165.04,0.00021917,3]
[330612659,1719624666844,-500.0,0.00021917,3]
[330612660,1719624666853,-500.0,0.00021917,3]
[330612661,1719624666863,-486.61985195,0.00021917,3]
[330612662,1719624666873,-1128.53,0.00021917,3]
[330612663,1719624666883,-82815.7,0.00021917,3]
[330612664,1719624666892,-500.0,0.00021917,3]
[330612665,1719624666901,-977.6,0.00021917,3]
[330612666,1719624666911,-1607.59,0.00021917,3]
[330612667,1719624666922,-500.0,0.00021917,3]
[330612668,1719624666931,-500.0,0.00021917,3]
[330612669,1719624666941,-542.64,0.00021917,3]
[330612670,1719624666950,-500.0,0.00021917,3]
[330612671,1719624666959,-500.0,0.00021917,3]
[330612672,1719624666969,-1178.67,0.00021917,3]
[330612673,1719624666978,-2467.56,0.00021917,3]
[330612674,1719624666988,-1028.31,0.00021917,3]
[330612675,1719624666997,-510.86,0.00021917,3]
[330612676,1719624667007,-1435.99,0.00021917,3]
[330612677,1719624667017,-500.0,0.00021917,3]
[330612678,1719624667026,-1712.86,0.00021917,3]
[330612679,1719624667035,-1395.77,0.00021917,3]
[330612680,1719624667046,-904.45,0.00021917,3]
[330612681,1719624667055,-3921.06,0.00021917,3]
[330612682,1719624667064,-1369.88,0.00021917,3]
[330612683,1719624667073,-500.0,0.00021917,3]
[330612684,1719624667083,-871.37,0.00021917,3]
[330612685,1719624667092,-1996.92,0.00021917,3]
[330612686,1719624667101,-2605.61,0.00021917,3]
[330612687,1719624667111,-500.0,0.00021917,3]
[330612688,1719624667120,-500.0,0.00021917,3]
[330612689,1719624667129,-502.75,0.00021917,3]
[330612690,1719624667139,-1416.94,0.00021917,3]
[330612691,1719624667148,-594.92,0.00021917,3]
[330612692,1719624667158,-1167.13,0.00021917,3]
[330612693,1719624667167,-8149.31,0.00021917,3]
[330612694,1719624667178,-500.0,0.00021917,3]
[330612695,1719624667187,-1105.45,0.00021917,3]
[330612696,1719624667199,-4346.28,0.00021917,3]
[330612697,1719624667207,-500.0,0.00021917,3]
[330612698,1719624667217,-1960.55,0.00021917,3]
[330612699,1719624667227,-2519.59,0.00021917,3]
[330612700,1719624667237,-2359.31,0.00021917,3]
[330612701,1719624667248,-562.56,0.00021917,3]
[330612702,1719624667257,-500.0,0.00021917,3]
[330612703,1719624667266,-3979.33,0.00021917,3]
[330612704,1719624667276,-1673.78,0.00021917,3]
[330612705,1719624667286,-2458.01,0.00021917,3]
[330612706,1719624667295,-500.0,0.00021917,3]
[330612707,1719624667305,-500.0,0.00021917,3]
[330612708,1719624667314,-500.0,0.00021917,3]
[330612709,1719624667324,-732.41,0.00021917,3]
[330612710,1719624667334,-500.0,0.00021917,3]
[330612711,1719624667346,-500.0,0.00021917,3]
[330612712,1719624667356,-9123.39,0.00021917,3]
[330612713,1719624667365,-500.0,0.00021917,3]
[330612714,1719624667375,-675.72,0.00021917,3]
[330612715,1719624667384,-500.0,0.00021917,3]
[330612716,1719624667393,-1058.26,0.00021917,3]
[330612717,1719624667403,-2537.17,0.00021917,3]
[330612718,1719624667412,-4114.85,0.00021917,3]
[330612719,1719624667421,-1374.53,0.00021917,3]
[330612720,1719624667432,-770.98,0.00021917,3]
[330612721,1719624667443,-1374.53,0.00021917,3]
[330612722,1719624667453,-1457.73,0.00021917,3]
[330612723,1719624667464,-1374.53,0.00021917,3]
[330612724,1719624667474,-1374.53,0.00021917,3]
[330612725,1719624667483,-1024.57,0.00021917,3]
[330612726,1719624667493,-500.0,0.00021917,3]
[330612727,1719624667502,-500.0,0.00021917,3]
[330612728,1719624667511,-1374.53,0.00021917,3]
[330612729,1719624667521,-2257.8,0.00021917,3]
[330612730,1719624667530,-1374.53,0.00021917,3]
[330612731,1719624667539,-1374.53,0.00021917,3]
[330612732,1719624667548,-1374.53,0.00021917,3]
[330612733,1719624667558,-1374.53,0.00021917,3]
[330612734,1719624667567,-1374.53,0.00021917,3]
[330612735,1719624667576,-1374.53,0.00021917,3]
[330612736,1719624667586,-1374.53,0.00021917,3]
[330612737,1719624667595,-654.51,0.00021917,3]
[330612738,1719624667604,-686.64,0.00021917,3]
[330612739,1719624667614,-550.06,0.00021917,3]
[330612740,1719624667623,-660.14,0.00021917,3]
[330612741,1719624667632,-1439.04,0.00021917,3]
[330612742,1719624667642,-500.0,0.00021917,3]
[330612743,1719624667652,-500.0,0.00021917,3]
[330612744,1719624667660,-500.0,0.00021917,3]
[330612745,1719624667670,-500.0,0.00021917,3]
[330612746,1719624667681,-1344.97,0.00021917,3]
[330612747,1719624667690,-548.8040129,0.00021917,3]
[330612748,1719624667699,-1575.94,0.00021917,3]
[330612749,1719624667708,-2873.45,0.00021917,3]
[330612750,1719624667716,-931.37,0.00021917,3]
[330612751,1719624667727,-4425.19,0.00021917,3]
[330612752,1719624667738,-3034.13,0.00021917,3]
[330612753,1719624667748,-1279.74,0.00021917,3]
[330612754,1719624667757,-590.13,0.00021917,3]
[330612755,1719624667766,-2840.32,0.00021917,3]
[330612756,1719624667776,-747.41,0.00021917,3]
[330612757,1719624667785,-1432.57,0.00021917,3]
[330612758,1719624667795,-500.0,0.00021917,3]
[330612759,1719624667804,-500.0,0.00021917,3]
[330612760,1719624667814,-6046.65,0.00021917,3]
[330612761,1719624667823,-500.0,0.00021917,3]
[330612762,1719624667833,-575.88,0.00021917,3]
[330612764,1719624667842,-624.67,0.00021917,3]
[330612765,1719624667852,-1104.61,0.00021917,3]
[330612766,1719624667861,-1051.8,0.00021917,3]
[330612768,1719624667871,-580.52,0.00021917,3]
[330612769,1719624667879,-1087.6,0.00021917,3]
[330612770,1719624667889,-500.0,0.00021917,3]
[330612771,1719624667899,-500.0,0.00021917,3]
[330612772,1719624667908,-892.89,0.00021917,3]
[330612773,1719624667919,-1210.62,0.00021917,3]
[330612774,1719624667930,-500.0,0.00021917,3]
[330612775,1719624667939,-2956.44,0.00021917,3]
[330612776,1719624667948,-940.78,0.00021917,3]
[330612777,1719624667959,-650.5,0.00021917,3]
[330612778,1719624667968,-2588.95,0.00021917,3]
[330612779,1719624667978,-2870.13,0.00021917,3]
[330612780,1719624667987,-792.35,0.00021917,3]
[330612781,1719624667997,-811.03,0.00021917,3]
[330612782,1719624668006,-500.0,0.00021917,3]
[330612783,1719624668016,-1824.11,0.00021917,3]
[330612784,1719624668025,-4588.23,0.00021917,3]
[330612785,1719624668034,-500.0,0.00021917,3]
[330612786,1719624668044,-1446.17,0.00021917,3]
[330612787,1719624668053,-500.0,0.00021917,3]
[330612788,1719624668063,-1491.07,0.00021917,3]
[330612789,1719624668073,-4619.97,0.00021917,3]
[330612790,1719624668082,-500.0,0.00021917,3]
[330612791,1719624668091,-3567.41,0.00021917,3]
[330612792,1719624668101,-2760.69,0.00021917,3]
[330612793,1719624668110,-1743.36,0.00021917,3]
[330612794,1719624668119,-1706.74,0.00021917,3]
[330612795,1719624668129,-648.32,0.00021917,3]
[330612796,1719624668138,-500.0,0.00021917,3]
[330612797,1719624668147,-2866.52,0.00021917,3]
[330612798,1719624668157,-958.45,0.00021917,3]
[330612799,1719624668166,-1017.33,0.00021917,3]
[330612800,1719624668178,-500.0,0.00021917,3]
[330612801,1719624668187,-3535.8,0.00021917,3]
[330612802,1719624668196,-607.37,0.00021917,3]
[330612803,1719624668204,-500.0,0.00021917,3]
[330612804,1719624668213,-3320.18,0.00021917,3]
[330612805,1719624668222,-1758.97,0.00021917,3]
[330612806,1719624668232,-500.0,0.00021917,3]
[330612807,1719624668242,-969.18,0.00021917,3]
[330612808,1719624668252,-822.41,0.00021917,3]
[330612809,1719624668262,-500.0,0.00021917,3]
[330612810,1719624668272,-500.0,0.00021917,3]
[330612811,1719624668281,-2260.43,0.00021917,3]
[330612812,1719624668291,-1098.93,0.00021917,3]
[330612813,1719624668301,-500.0,0.00021917,3]
[330612814,1719624668311,-833.7,0.00021917,3]
[330612815,1719624668321,-500.0,0.00021917,3]
[330612816,1719624668330,-500.0,0.00021917,3]
[330612817,1719624668343,-500.0,0.00021917,3]
[330612818,1719624668353,-880.7,0.00021917,3]
[330612819,1719624668363,-500.0,0.00021917,3]
[330612820,1719624668373,-500.0,0.00021917,3]
[330612821,1719624668383,-1981.42,0.00021917,3]
[330612822,1719624668392,-2610.65,0.00021917,3]
[330612823,1719624668402,-1034.91,0.00021917,3]
[330612824,1719624668412,-3817.82,0.00021917,3]
[330612825,1719624668426,-500.0,0.00021917,3]
[330612826,1719624668436,-500.0,0.00021917,3]
[330612827,1719624668445,-924.99,0.00021917,3]
[330612828,1719624668455,-562.25,0.00021917,3]
[330612829,1719624668466,-500.0,0.00021917,3]
[330612830,1719624668476,-500.0,0.00021917,3]
[330612831,1719624668486,-500.0,0.00021917,3]
[330612832,1719624668496,-1404.17,0.00021917,3]
[330612833,1719624668506,-684.56,0.00021917,3]
[330612834,1719624668516,-2523.79,0.00021917,3]
[330612835,1719624668526,-1120.09,0.00021917,3]
[330612836,1719624668535,-389.42250572,0.00021917,3]
[330612837,1719624668545,-500.0,0.00021917,3]
[330612838,1719624668554,-1440.61,0.00021917,3]
[330612839,1719624668563,-500.0,0.00021917,3]
[330612840,1719624668572,-5350.62,0.00021917,3]
[330612841,1719624668581,-4196.26,0.00021917,3]
[330612842,1719624668591,-500.0,0.00021917,3]
[330612843,1719624668600,-2025.88,0.00021917,3]
[330612844,1719624668609,-807.3,0.00021917,3]
[330612845,1719624668619,-500.0,0.00021917,3]
[330612846,1719624668628,-3855.22,0.00021917,3]
[330612847,1719624668637,-500.0,0.00021917,3]
[330612848,1719624668646,-632.54,0.00021917,3]
[330612849,1719624668656,-1676.85,0.00021917,3]
[330612850,1719624668665,-4748.91,0.00021917,3]
[330612851,1719624668675,-1182.52,0.00021917,3]
[330612852,1719624668684,-500.0,0.00021917,3]
[330612853,1719624668693,-500.0,0.00021917,3]
[330612854,1719624668702,-500.0,0.00021917,3]
[330612855,1719624668710,-500.0,0.00021917,3]
[330612856,1719624668720,-500.0,0.00021917,3]
[330612857,1719624668729,-724.04,0.00021917,3]
[330612858,1719624668738,-1197.14,0.00021917,3]
[330612859,1719624668747,-500.0,0.00021917,3]
[330612860,1719624668757,-500.0,0.00021917,3]
[330612861,1719624668767,-4325.54,0.00021917,3]
[330612862,1719624668776,-500.0,0.00021917,3]
[330612863,1719624668785,-765.48,0.00021917,3]
[330612864,1719624668795,-1744.26,0.00021917,3]
[330612865,1719624668804,-2332.41,0.00021917,3]
[330612866,1719624668814,-500.0,0.00021917,3]
[330612867,1719624668824,-1377.2,0.00021917,3]
[330612868,1719624668835,-931.17,0.00021917,3]
[330612869,1719624668845,-2280.02,0.00021917,3]
[330612870,1719624668855,-500.0,0.00021917,3]
[330612871,1719624668864,-789.81,0.00021917,3]
[330612872,1719624668874,-777.02,0.00021917,3]
[330612873,1719624668883,-2836.9,0.00021917,3]
[330612874,1719624668893,-500.0,0.00021917,3]
[330612875,1719624668903,-2510.94,0.00021917,3]
[330612876,1719624668912,-1105.0,0.00021917,3]
[330612877,1719624668922,-500.0,0.00021917,2]
[330612878,1719624668932,-1932.11,0.00021917,3]
[330612879,1719624668941,-392.57350966,0.00021917,3]
[330612880,1719624668950,-5049.46,0.00021917,3]
[330612881,1719624668960,-4193.97,0.00021917,3]
[330612882,1719624668969,-500.0,0.00021917,3]
[330612883,1719624668978,-500.0,0.00021917,3]
[330612884,1719624668987,-3760.29,0.00021917,3]
[330612885,1719624668996,-1078.75,0.00021917,3]
[330612886,1719624669005,-1821.11,0.00021917,3]
[330612887,1719624669015,-16484.81,0.00021917,3]
[330612888,1719624669025,-500.0,0.00021917,3]
[330612889,1719624669034,-4798.26,0.00021917,3]
[330612890,1719624669044,-2280.59,0.00021917,3]
[330612891,1719624669054,-3280.32,0.00021917,3]
[330612892,1719624669063,-966.0,0.00021917,3]
[330612893,1719624669073,-1846.57,0.00021917,3]
[330612894,1719624669083,-933.12,0.00021917,3]
[330612895,1719624669092,-1431.07,0.00021917,3]
[330612896,1719624669103,-794.63,0.00021917,3]
[330612897,1719624669112,-500.0,0.00021917,3]
[330612898,1719624669122,-374.07255937,0.00021917,3]
[330612899,1719624669132,-500.0,0.00021917,3]
[330612900,1719624669141,-500.0,0.00021917,3]
[330612901,1719624669151,-500.0,0.00021917,3]
[330612902,1719624669160,-500.0,0.00021917,3]
[330612903,1719624669169,-1610.48,0.00021917,3]
[330612904,1719624669180,-1072.49,0.00021917,3]
[330612905,1719624669189,-2364.25,0.00021917,3]
[330612906,1719624669198,-500.0,0.00021917,3]
[330612907,1719624669208,-836.45,0.00021917,3]
[330612908,1719624669218,-3984.0,0.00021917,3]
[330612909,1719624669227,-1205.32,0.00021917,3]
[330612910,1719624669238,-964.36,0.00021917,3]
[330612911,1719624669248,-3480.08,0.00021917,3]
[330612912,1719624669258,-2603.31,0.00021917,3]
[330612913,1719624669268,-4390.87,0.00021917,3]
[330612914,1719624669279,-11220.87,0.00021917,3]
[330612915,1719624669288,-346.18106544,0.00021917,3]
[330612916,1719624669298,-567.31,0.00021917,3]
[330612917,1719624669308,-581.27,0.00021917,3]
[330612918,1719624669318,-4053.71,0.00021917,3]
[330612919,1719624669327,-500.0,0.00021917,3]
[330612920,1719624669338,-1044.91,0.00021917,3]
[330612921,1719624669352,-736.12,0.00021917,3]
[330612922,1719624669362,-500.0,0.00021917,3]
[330612923,1719624669372,-170068.36846774,0.00021918,7]
[330612924,1719624669382,-114692.0,0.00021918,2]
[330612925,1719624669392,-307.82,0.00021918,2]
[330612926,1719624669403,-151.0,0.00021918,2]
[330612927,1719624669414,-151.0,0.00021918,2]
[330612928,1719624669425,-151.0,0.00021918,2]
[330612929,1719624669435,-151.0,0.00021918,2]
[330612930,1719624669444,-151.0,0.00021918,2]